fUST/lending_fUST_20260515
["ID","MTS","AMOUNT","RATE_DAILY","PERIOD"]
[422316523,1778817045000,-2907.15669367,0.0001,2]
[422316527,1778817045000,-7524.02226955,0.0001,2]
[422316525,1778817045000,-2092.84330633,0.0001,2]
[422316767,1778817047000,-5173.0,0.0001,2]
[422316765,1778817047000,-89177.98097155,0.0001,2]
[422316764,1778817047000,-189.54332612,9.8e-05,2]
[422317092,1778817508000,56.77767998,0.00014333,120]
[422317097,1778817682000,-114.52402561,0.0001477,120]
[422317096,1778817682000,-89.1033868,0.00014346,120]
[422317095,1778817682000,-62.99930697,0.00014346,120]
[422317094,1778817682000,-137.00069303,0.00014333,120]
[422317100,1778817683000,-93.87828737,0.00014881,120]
[422317099,1778817683000,-152.66755085,0.00014881,120]
[422317098,1778817683000,-47.33244915,0.0001477,120]
[422317105,1778817764000,-200.0,0.00014907,120]
[422317107,1778817765000,-176.41273344,0.00014938,120]
[422317108,1778817765000,-27.21467897,0.00014938,120]
[422317106,1778817765000,-23.58726656,0.00014907,120]
[422317153,1778818231000,-3791.41298193,8.182e-05,2]
[422317151,1778818231000,-3162.03750911,8.1e-05,2]
[422317149,1778818231000,-483.83001356,8.1e-05,2]
[422317325,1778818238000,-600.0,8.859e-05,2]
[422317324,1778818238000,-3968.43578335,8.799e-05,2]
[422317332,1778818238000,-5083.82789296,9.301e-05,2]
[422317328,1778818238000,-4340.18466256,8.899e-05,2]
[422317330,1778818238000,-4712.06805256,8.999e-05,2]
[422317338,1778818238000,-185.0,9.537e-05,2]
[422317344,1778818238000,-160.0,9.797e-05,2]
[422317346,1778818238000,-160.0,9.797e-05,2]
[422317334,1778818238000,-500.0,9.5e-05,2]
[422317340,1778818238000,-5479.1796357,9.699e-05,2]
[422317342,1778818238000,-720.0,9.745e-05,2]
[422317348,1778818238000,-161.65638237,9.799e-05,2]
[422317350,1778818238000,-304.23374954,9.8e-05,2]
[422317363,1778818238000,-532.51704449,9.977e-05,2]
[422317365,1778818238000,-438.90418323,9.993e-05,2]
[422317367,1778818238000,-330.79581349,9.993e-05,2]
[422317370,1778818238000,-537.6845,9.994e-05,2]
[422317368,1778818238000,-151.0,9.994e-05,2]
[422317372,1778818238000,-151.0,9.994e-05,2]
[422317371,1778818238000,-164.32084272,9.994e-05,2]
[422317336,1778818238000,-443.0,9.537e-05,2]
[422317317,1778818238000,-300.0,8.686e-05,2]
[422317315,1778818238000,-300.0,8.686e-05,2]
[422317311,1778818238000,-300.0,8.686e-05,2]
[422317352,1778818238000,-27906.66183033,9.899e-05,2]
[422317273,1778818238000,-1208.58701807,8.182e-05,2]
[422317275,1778818238000,-273.6893013,8.466e-05,2]
[422317277,1778818238000,-300.0,8.498e-05,2]
[422317290,1778818238000,-300.0,8.686e-05,2]
[422317295,1778818238000,-300.0,8.686e-05,2]
[422317297,1778818238000,-300.0,8.686e-05,2]
[422317283,1778818238000,-152.0,8.591e-05,7]
[422317293,1778818238000,-300.0,8.686e-05,2]
[422317319,1778818238000,-300.0,8.686e-05,2]
[422317279,1778818238000,-1599.87337539,8.499e-05,2]
[422317289,1778818238000,-3596.68690423,8.599e-05,2]
[422317299,1778818238000,-300.0,8.686e-05,2]
[422317303,1778818238000,-300.0,8.686e-05,2]
[422317309,1778818238000,-300.0,8.686e-05,2]
[422317307,1778818238000,-300.0,8.686e-05,2]
[422317305,1778818238000,-300.0,8.686e-05,2]
[422317321,1778818238000,-3916.63179601,8.699e-05,2]
[422317313,1778818238000,-300.0,8.686e-05,2]
[422317301,1778818238000,-300.0,8.686e-05,2]
[422317281,1778818238000,-152.0,8.591e-05,7]
[422317373,1778818238000,-151.0,9.994e-05,2]
[422317403,1778818238000,-1090.18362311,9.999e-05,2]
[422317355,1778818238000,-532.5170445,9.908e-05,2]
[422317392,1778818238000,-155.52716387,9.994e-05,2]
[422317391,1778818238000,-151.0,9.994e-05,2]
[422317397,1778818238000,-1090.18362311,9.999e-05,2]
[422317411,1778818238000,-1129.82666395,9.999e-05,2]
[422317402,1778818238000,-1090.18362311,9.999e-05,2]
[422317412,1778818238000,-1129.82666395,9.999e-05,2]
[422317405,1778818238000,-1090.18362311,9.999e-05,2]
[422317410,1778818238000,-1090.18362311,9.999e-05,2]
[422317406,1778818238000,-1090.18362311,9.999e-05,2]
[422317394,1778818238000,-395.13659598,9.999e-05,2]
[422317409,1778818238000,-1090.18362311,9.999e-05,2]
[422317401,1778818238000,-1090.18362311,9.999e-05,2]
[422317404,1778818238000,-1090.18362311,9.999e-05,2]
[422317408,1778818238000,-1090.18362311,9.999e-05,2]
[422317414,1778818238000,-1129.82666395,9.999e-05,2]
[422317413,1778818238000,-1129.82666395,9.999e-05,2]
[422317415,1778818238000,-1129.82666395,9.999e-05,2]
[422317417,1778818238000,-1129.82666395,9.999e-05,2]
[422317416,1778818238000,-1129.82666395,9.999e-05,2]
[422317359,1778818238000,-532.51704449,9.931e-05,2]
[422317400,1778818238000,-1090.18362311,9.999e-05,2]
[422317387,1778818238000,-151.0,9.994e-05,2]
[422317407,1778818238000,-1090.18362311,9.999e-05,2]
[422317396,1778818238000,-1090.18362311,9.999e-05,2]
[422317357,1778818238000,-292.57722423,9.908e-05,30]
[422317361,1778818238000,-532.51704449,9.954e-05,2]
[422317374,1778818238000,-151.0,9.994e-05,2]
[422317377,1778818238000,-151.0,9.994e-05,2]
[422317382,1778818238000,-151.0,9.994e-05,2]
[422317395,1778818238000,-1090.18362311,9.999e-05,2]
[422317384,1778818238000,-151.0,9.994e-05,2]
[422317380,1778818238000,-151.0,9.994e-05,2]
[422317376,1778818238000,-151.0,9.994e-05,2]
[422317378,1778818238000,-151.0,9.994e-05,2]
[422317383,1778818238000,-151.0,9.994e-05,2]
[422317379,1778818238000,-151.0,9.994e-05,2]
[422317375,1778818238000,-151.0,9.994e-05,2]
[422317385,1778818238000,-151.0,9.994e-05,2]
[422317386,1778818238000,-151.0,9.994e-05,2]
[422317389,1778818238000,-151.0,9.994e-05,2]
[422317399,1778818238000,-1090.18362311,9.999e-05,2]
[422317390,1778818238000,-151.0,9.994e-05,2]
[422317398,1778818238000,-1090.18362311,9.999e-05,2]
[422317381,1778818238000,-151.0,9.994e-05,2]
[422317388,1778818238000,-151.0,9.994e-05,2]
[422317393,1778818238000,-280.376,9.999e-05,2]
[422317461,1778818239000,-161.76011111,0.000102,2]
[422317465,1778818239000,-535.3488435,0.00010277,2]
[422317466,1778818239000,-151.0,0.00010277,2]
[422317456,1778818239000,-150.13977269,0.00010192,2]
[422317459,1778818239000,-388.70620919,0.000102,2]
[422317454,1778818239000,-394.8188695,0.00010164,2]
[422317458,1778818239000,-9572.33649737,0.000102,2]
[422317457,1778818239000,-160.0,0.000102,2]
[422317448,1778818239000,-557.5788265,0.00010049,2]
[422317447,1778818239000,-160.54426975,0.00010025,5]
[422317462,1778818239000,-292.57722423,0.00010236,30]
[422317446,1778818239000,-160.0,0.00010025,3]
[422317455,1778818239000,-301.97,0.00010164,2]
[422317463,1778818239000,-325.8415176,0.00010277,2]
[422317474,1778818239000,-9572.33649737,0.000105,2]
[422317464,1778818239000,-152.6926396,0.00010277,2]
[422317468,1778818239000,-9572.33649737,0.000103,2]
[422317467,1778818239000,-151.0,0.00010277,2]
[422317479,1778818239000,-529.77909268,0.0001059,2]
[422317478,1778818239000,-400.0,0.0001059,3]
[422317469,1778818239000,-388.70620919,0.000103,2]
[422317475,1778818239000,-155.30977975,0.00010517,21]
[422317473,1778818239000,-160.0,0.000105,2]
[422317472,1778818239000,-322.95337553,0.00010466,2]
[422317476,1778818239000,-186.3695432,0.00010542,2]
[422317470,1778818239000,-9572.33649737,0.000104,2]
[422317471,1778818239000,-388.70620919,0.000104,2]
[422317449,1778818239000,-9572.33649737,0.000101,2]
[422317460,1778818239000,-161.0,0.000102,2]
[422317445,1778818239000,-188.75,0.00010016,2]
[422317426,1778818239000,-503.56012524,0.0001,2]
[422317450,1778818239000,-388.70620919,0.000101,2]
[422317477,1778818239000,-292.57722423,0.00010563,30]
[422317424,1778818239000,-1117.11901667,0.0001,2]
[422317425,1778818239000,-388.70620919,0.0001,2]
[422317418,1778818239000,-1129.82666395,9.999e-05,2]
[422317421,1778818239000,-9572.33649737,0.0001,2]
[422317420,1778818239000,-663801.94269352,0.0001,2]
[422317419,1778818239000,-1129.82666395,9.999e-05,2]
[422317423,1778818239000,-5497.72452023,0.0001,2]
[422317422,1778818239000,-618.94892706,0.0001,2]
[422317429,1778818239000,-1010.0,0.0001,6]
[422317428,1778818239000,-160.0,0.0001,2]
[422317430,1778818239000,-180.17177628,0.0001,2]
[422317437,1778818239000,-151.0,0.0001,2]
[422317431,1778818239000,-151.0,0.0001,2]
[422317433,1778818239000,-151.0,0.0001,2]
[422317432,1778818239000,-151.0,0.0001,2]
[422317427,1778818239000,-160.0,0.0001,2]
[422317435,1778818239000,-151.0,0.0001,2]
[422317434,1778818239000,-151.0,0.0001,2]
[422317438,1778818239000,-151.0,0.0001,2]
[422317436,1778818239000,-151.0,0.0001,2]
[422317440,1778818239000,-151.0,0.0001,2]
[422317453,1778818239000,-500.0,0.00010164,2]
[422317451,1778818239000,-578.20924308,0.00010104,2]
[422317444,1778818239000,-2068.3801137,0.00010004,2]
[422317443,1778818239000,-7578.7817609,0.00010004,2]
[422317452,1778818239000,-181.4421227,0.00010159,2]
[422317439,1778818239000,-151.0,0.0001,2]
[422317442,1778818239000,-532.51704449,0.0001,2]
[422317441,1778818239000,-151.84517605,0.0001,2]
[422317480,1778818239000,-9572.33649737,0.000106,2]
[422317485,1778818239000,-1064.76940374,0.00010747,2]
[422317482,1778818239000,-191.62629831,0.00010642,2]
[422317514,1778818239000,-500.0,0.00010958,2]
[422317517,1778818239000,-500.0,0.00010958,2]
[422317520,1778818239000,-238.37007895,0.00010958,2]
[422317522,1778818239000,-500.0,0.00010958,2]
[422317527,1778818239000,-385.68644919,0.00010958,2]
[422317525,1778818239000,-500.84848713,0.00010958,2]
[422317526,1778818239000,-500.0,0.00010958,2]
[422317528,1778818239000,-505.33995421,0.00010958,2]
[422317524,1778818239000,-500.0,0.00010958,2]
[422317529,1778818239000,-500.0,0.00010958,2]
[422317531,1778818239000,-500.0,0.00010958,2]
[422317541,1778818239000,-249.97716258,0.00010958,2]
[422317542,1778818239000,-500.0,0.00010958,2]
[422317543,1778818239000,-503.49420609,0.00010958,2]
[422317530,1778818239000,-160.40225583,0.00010958,2]
[422317532,1778818239000,-502.33316301,0.00010958,2]
[422317533,1778818239000,-503.91075113,0.00010958,2]
[422317539,1778818239000,-501.74704931,0.00010958,2]
[422317538,1778818239000,-500.0,0.00010958,2]
[422317535,1778818239000,-652.67,0.00010958,2]
[422317534,1778818239000,-169.3510877,0.00010958,2]
[422317537,1778818239000,-503.70179368,0.00010958,2]
[422317540,1778818239000,-500.0,0.00010958,2]
[422317536,1778818239000,-501.16210478,0.00010958,2]
[422317544,1778818239000,-504.5945769,0.00010958,2]
[422317546,1778818239000,-503.40799629,0.00010958,2]
[422317547,1778818239000,-504.0590599,0.00010958,2]
[422317545,1778818239000,-783.25,0.00010958,2]
[422317484,1778818239000,-864.0,0.00010719,2]
[422317513,1778818239000,-505.51976899,0.00010958,2]
[422317519,1778818239000,-500.0,0.00010958,2]
[422317499,1778818239000,-647.4523,0.00010958,2]
[422317515,1778818239000,-503.11636851,0.00010958,2]
[422317490,1778818239000,-521.57215911,0.00010858,2]
[422317481,1778818239000,-13501.284657,0.000106,2]
[422317488,1778818239000,-154.31169172,0.0001079,21]
[422317483,1778818239000,-9572.33649737,0.000107,2]
[422317486,1778818239000,-204.80405697,0.00010763,60]
[422317489,1778818239000,-9572.33649737,0.000108,2]
[422317491,1778818239000,-35163.5633361,0.0001088,2]
[422317492,1778818239000,-9572.33649737,0.000109,2]
[422317494,1778818239000,-292.57722424,0.00010908,7]
[422317504,1778818239000,-500.9743944,0.00010958,2]
[422317505,1778818239000,-503.05649165,0.00010958,2]
[422317506,1778818239000,-504.95996506,0.00010958,2]
[422317493,1778818239000,-7451.09507718,0.000109,2]
[422317495,1778818239000,-2881.3507,0.00010958,2]
[422317487,1778818239000,-529.0,0.0001077,2]
[422317503,1778818239000,-500.0,0.00010958,2]
[422317518,1778818239000,-500.0,0.00010958,2]
[422317496,1778818239000,-623.0985,0.00010958,2]
[422317508,1778818239000,-500.0,0.00010958,2]
[422317511,1778818239000,-1369.33,0.00010958,2]
[422317512,1778818239000,-501.42008751,0.00010958,2]
[422317510,1778818239000,-500.0,0.00010958,2]
[422317509,1778818239000,-505.24208859,0.00010958,2]
[422317516,1778818239000,-500.0,0.00010958,2]
[422317497,1778818239000,-1038.8393,0.00010958,2]
[422317502,1778818239000,-503.83478274,0.00010958,2]
[422317498,1778818239000,-500.0,0.00010958,2]
[422317500,1778818239000,-504.06774341,0.00010958,2]
[422317501,1778818239000,-500.0,0.00010958,2]
[422317507,1778818239000,-504.32228674,0.00010958,2]
[422317599,1778818240000,-500.0,0.00010958,2]
[422317598,1778818240000,-502.72382352,0.00010958,2]
[422317589,1778818240000,-500.0,0.00010958,2]
[422317596,1778818240000,-500.92225341,0.00010958,2]
[422317586,1778818240000,-500.0,0.00010958,2]
[422317587,1778818240000,-507.88777457,0.00010958,2]
[422317583,1778818240000,-500.0,0.00010958,2]
[422317584,1778818240000,-501.13300546,0.00010958,2]
[422317577,1778818240000,-683.38,0.00010958,2]
[422317582,1778818240000,-500.0,0.00010958,2]
[422317573,1778818240000,-500.0,0.00010958,2]
[422317595,1778818240000,-500.0,0.00010958,2]
[422317588,1778818240000,-503.21449979,0.00010958,2]
[422317590,1778818240000,-1330.42,0.00010958,2]
[422317608,1778818240000,-366.56684039,0.00010958,2]
[422317594,1778818240000,-508.60981801,0.00010958,2]
[422317593,1778818240000,-503.88725843,0.00010958,2]
[422317592,1778818240000,-500.0,0.00010958,2]
[422317600,1778818240000,-500.0,0.00010958,2]
[422317602,1778818240000,-615.03,0.00010958,2]
[422317605,1778818240000,-503.42221796,0.00010958,2]
[422317603,1778818240000,-500.0,0.00010958,2]
[422317606,1778818240000,-503.56534424,0.00010958,2]
[422317604,1778818240000,-500.0,0.00010958,2]
[422317612,1778818240000,-518.93775071,0.00010958,2]
[422317607,1778818240000,-503.06710376,0.00010958,2]
[422317581,1778818240000,-633.62,0.00010958,2]
[422317597,1778818240000,-501.20678321,0.00010958,2]
[422317601,1778818240000,-1999.5,0.00010958,2]
[422317564,1778818240000,-500.0,0.00010958,2]
[422317578,1778818240000,-500.0,0.00010958,2]
[422317552,1778818240000,-500.0,0.00010958,2]
[422317553,1778818240000,-503.22912038,0.00010958,2]
[422317554,1778818240000,-500.0,0.00010958,2]
[422317551,1778818240000,-500.0,0.00010958,2]
[422317550,1778818240000,-694.38,0.00010958,2]
[422317549,1778818240000,-500.0,0.00010958,2]
[422317556,1778818240000,-501.97811828,0.00010958,2]
[422317548,1778818240000,-500.0,0.00010958,2]
[422317555,1778818240000,-500.0,0.00010958,2]
[422317557,1778818240000,-500.0,0.00010958,2]
[422317559,1778818240000,-557.79343939,0.00010958,2]
[422317558,1778818240000,-500.0,0.00010958,2]
[422317569,1778818240000,-500.0,0.00010958,2]
[422317570,1778818240000,-641.53,0.00010958,2]
[422317560,1778818240000,-596.69,0.00010958,2]
[422317571,1778818240000,-500.0,0.00010958,2]
[422317565,1778818240000,-500.0,0.00010958,2]
[422317613,1778818240000,-541.14,0.00010958,2]
[422317562,1778818240000,-1340.18,0.00010958,2]
[422317563,1778818240000,-500.0,0.00010958,2]
[422317561,1778818240000,-500.0,0.00010958,2]
[422317566,1778818240000,-562.57,0.00010958,2]
[422317568,1778818240000,-500.0,0.00010958,2]
[422317567,1778818240000,-500.0,0.00010958,2]
[422317572,1778818240000,-500.0,0.00010958,2]
[422317575,1778818240000,-500.0,0.00010958,2]
[422317574,1778818240000,-618.07,0.00010958,2]
[422317576,1778818240000,-500.0,0.00010958,2]
[422317585,1778818240000,-500.0,0.00010958,2]
[422317579,1778818240000,-464.10557151,0.00010958,2]
[422317609,1778818240000,-652.55,0.00010958,2]
[422317580,1778818240000,-614.3713932,0.00010958,2]
[422317610,1778818240000,-500.0,0.00010958,2]
[422317646,1778818240000,-500.0,0.00010958,2]
[422317650,1778818240000,-500.0,0.00010958,2]
[422317652,1778818240000,-500.0,0.00010958,2]
[422317653,1778818240000,-500.0,0.00010958,2]
[422317660,1778818240000,-500.0,0.00010958,2]
[422317657,1778818240000,-500.0,0.00010958,2]
[422317656,1778818240000,-500.0,0.00010958,2]
[422317658,1778818240000,-500.0,0.00010958,2]
[422317654,1778818240000,-500.0,0.00010958,2]
[422317651,1778818240000,-500.0,0.00010958,2]
[422317661,1778818240000,-500.0,0.00010958,2]
[422317659,1778818240000,-500.0,0.00010958,2]
[422317655,1778818240000,-501.5868728,0.00010958,2]
[422317663,1778818240000,-702.53,0.00010958,2]
[422317662,1778818240000,-501.15512378,0.00010958,2]
[422317674,1778818240000,-3877.67,0.00010958,2]
[422317673,1778818240000,-500.0,0.00010958,2]
[422317666,1778818240000,-500.0,0.00010958,2]
[422317665,1778818240000,-500.0,0.00010958,2]
[422317664,1778818240000,-500.0,0.00010958,2]
[422317669,1778818240000,-500.0,0.00010958,2]
[422317667,1778818240000,-500.83603816,0.00010958,2]
[422317671,1778818240000,-500.0,0.00010958,2]
[422317670,1778818240000,-612.77,0.00010958,2]
[422317668,1778818240000,-588.04881934,0.00010958,2]
[422317672,1778818240000,-500.0,0.00010958,2]
[422317675,1778818240000,-501.29838991,0.00010958,2]
[422317676,1778818240000,-500.0,0.00010958,2]
[422317611,1778818240000,-500.0,0.00010958,2]
[422317641,1778818240000,-500.0,0.00010958,2]
[422317647,1778818240000,-739.82,0.00010958,2]
[422317591,1778818240000,-500.0,0.00010958,2]
[422317644,1778818240000,-1981.27,0.00010958,2]
[422317614,1778818240000,-500.0,0.00010958,2]
[422317642,1778818240000,-500.0,0.00010958,2]
[422317617,1778818240000,-500.0,0.00010958,2]
[422317616,1778818240000,-786.37,0.00010958,2]
[422317618,1778818240000,-757.9,0.00010958,2]
[422317621,1778818240000,-501.31662645,0.00010958,2]
[422317626,1778818240000,-500.0,0.00010958,2]
[422317615,1778818240000,-500.0,0.00010958,2]
[422317627,1778818240000,-500.0,0.00010958,2]
[422317624,1778818240000,-1238.84,0.00010958,2]
[422317623,1778818240000,-500.0,0.00010958,2]
[422317625,1778818240000,-520.81,0.00010958,2]
[422317629,1778818240000,-542.63,0.00010958,2]
[422317628,1778818240000,-500.0,0.00010958,2]
[422317619,1778818240000,-526.73267558,0.00010958,2]
[422317631,1778818240000,-500.0,0.00010958,2]
[422317634,1778818240000,-500.0,0.00010958,2]
[422317645,1778818240000,-500.0,0.00010958,2]
[422317637,1778818240000,-500.0,0.00010958,2]
[422317643,1778818240000,-394.47873432,0.00010958,2]
[422317639,1778818240000,-1513.77,0.00010958,2]
[422317649,1778818240000,-502.26110828,0.00010958,2]
[422317640,1778818240000,-500.0,0.00010958,2]
[422317638,1778818240000,-500.0,0.00010958,2]
[422317632,1778818240000,-726.05,0.00010958,2]
[422317633,1778818240000,-500.0,0.00010958,2]
[422317635,1778818240000,-3681.86,0.00010958,2]
[422317636,1778818240000,-723.83,0.00010958,2]
[422317630,1778818240000,-1325.61,0.00010958,2]
[422317648,1778818240000,-502.6507519,0.00010958,2]
[422317719,1778818241000,-624.73,0.00010958,2]
[422317718,1778818241000,-521.24,0.00010958,2]
[422317717,1778818241000,-500.0,0.00010958,2]
[422317721,1778818241000,-500.0,0.00010958,2]
[422317720,1778818241000,-1557.85,0.00010958,2]
[422317726,1778818241000,-500.0,0.00010958,2]
[422317727,1778818241000,-500.0,0.00010958,2]
[422317738,1778818241000,-500.0,0.00010958,2]
[422317736,1778818241000,-500.0,0.00010958,2]
[422317729,1778818241000,-500.0,0.00010958,2]
[422317728,1778818241000,-2218.99,0.00010958,2]
[422317731,1778818241000,-558.0,0.00010958,2]
[422317737,1778818241000,-500.0,0.00010958,2]
[422317734,1778818241000,-500.0,0.00010958,2]
[422317733,1778818241000,-500.0,0.00010958,2]
[422317732,1778818241000,-500.0,0.00010958,2]
[422317735,1778818241000,-500.0,0.00010958,2]
[422317740,1778818241000,-500.0,0.00010958,2]
[422317716,1778818241000,-500.0,0.00010958,2]
[422317730,1778818241000,-500.0,0.00010958,2]
[422317715,1778818241000,-1580.07,0.00010958,2]
[422317702,1778818241000,-500.0,0.00010958,2]
[422317725,1778818241000,-3788.09,0.00010958,2]
[422317692,1778818241000,-500.0,0.00010958,2]
[422317697,1778818241000,-500.0,0.00010958,2]
[422317698,1778818241000,-500.94023756,0.00010958,2]
[422317694,1778818241000,-500.0,0.00010958,2]
[422317696,1778818241000,-500.0,0.00010958,2]
[422317713,1778818241000,-500.0,0.00010958,2]
[422317701,1778818241000,-1001.79,0.00010958,2]
[422317712,1778818241000,-500.0,0.00010958,2]
[422317703,1778818241000,-500.0,0.00010958,2]
[422317751,1778818241000,-500.0,0.00010958,2]
[422317704,1778818241000,-1871.71,0.00010958,2]
[422317707,1778818241000,-645.33,0.00010958,2]
[422317705,1778818241000,-500.0,0.00010958,2]
[422317710,1778818241000,-694.99,0.00010958,2]
[422317708,1778818241000,-500.0,0.00010958,2]
[422317706,1778818241000,-500.0,0.00010958,2]
[422317714,1778818241000,-719.44,0.00010958,2]
[422317709,1778818241000,-500.0,0.00010958,2]
[422317711,1778818241000,-500.0,0.00010958,2]
[422317723,1778818241000,-500.0,0.00010958,2]
[422317722,1778818241000,-1145.34,0.00010958,2]
[422317724,1778818241000,-731.12,0.00010958,2]
[422317750,1778818241000,-500.0,0.00010958,2]
[422317753,1778818241000,-500.0,0.00010958,2]
[422317743,1778818241000,-500.0,0.00010958,2]
[422317772,1778818241000,-191.5033039,0.00010958,2]
[422317774,1778818241000,-504.61788317,0.00010958,2]
[422317770,1778818241000,-1284.55,0.00010958,2]
[422317771,1778818241000,-500.0,0.00010958,2]
[422317769,1778818241000,-588.22859775,0.00010958,2]
[422317775,1778818241000,-500.0,0.00010958,2]
[422317773,1778818241000,-500.0,0.00010958,2]
[422317779,1778818241000,-500.0,0.00010958,2]
[422317778,1778818241000,-500.0,0.00010958,2]
[422317767,1778818241000,-669.79,0.00010958,2]
[422317784,1778818241000,-500.0,0.00010958,2]
[422317781,1778818241000,-500.0,0.00010958,2]
[422317780,1778818241000,-1856.97,0.00010958,2]
[422317783,1778818241000,-500.0,0.00010958,2]
[422317785,1778818241000,-500.0,0.00010958,2]
[422317786,1778818241000,-500.0,0.00010958,2]
[422317789,1778818241000,-500.0,0.00010958,2]
[422317788,1778818241000,-3474.21,0.00010958,2]
[422317787,1778818241000,-5476.94,0.00010958,2]
[422317691,1778818241000,-549.96,0.00010958,2]
[422317782,1778818241000,-500.0,0.00010958,2]
[422317765,1778818241000,-500.0,0.00010958,2]
[422317776,1778818241000,-500.0,0.00010958,2]
[422317766,1778818241000,-500.0,0.00010958,2]
[422317742,1778818241000,-394.35644098,0.00010958,2]
[422317741,1778818241000,-470.49209424,0.00010958,2]
[422317744,1778818241000,-500.0,0.00010958,2]
[422317749,1778818241000,-500.0,0.00010958,2]
[422317747,1778818241000,-3995.95,0.00010958,2]
[422317746,1778818241000,-500.0,0.00010958,2]
[422317745,1778818241000,-500.0,0.00010958,2]
[422317748,1778818241000,-500.0,0.00010958,2]
[422317752,1778818241000,-514.54,0.00010958,2]
[422317757,1778818241000,-1334.88,0.00010958,2]
[422317754,1778818241000,-619.18,0.00010958,2]
[422317756,1778818241000,-500.0,0.00010958,2]
[422317755,1778818241000,-500.0,0.00010958,2]
[422317763,1778818241000,-500.0,0.00010958,2]
[422317759,1778818241000,-500.0,0.00010958,2]
[422317760,1778818241000,-500.0,0.00010958,2]
[422317764,1778818241000,-680.13,0.00010958,2]
[422317758,1778818241000,-500.0,0.00010958,2]
[422317762,1778818241000,-1236.6,0.00010958,2]
[422317761,1778818241000,-500.0,0.00010958,2]
[422317777,1778818241000,-500.0,0.00010958,2]
[422317739,1778818241000,-500.0,0.00010958,2]
[422317768,1778818241000,-500.0,0.00010958,2]
[422317690,1778818241000,-500.0,0.00010958,2]
[422317693,1778818241000,-593.52319296,0.00010958,2]
[422317695,1778818241000,-14610.742935,0.00010958,2]
[422317680,1778818241000,-500.0,0.00010958,2]
[422317683,1778818241000,-518.33769743,0.00010958,2]
[422317678,1778818241000,-932.86,0.00010958,2]
[422317677,1778818241000,-656.67,0.00010958,2]
[422317681,1778818241000,-500.0,0.00010958,2]
[422317682,1778818241000,-558.62,0.00010958,2]
[422317679,1778818241000,-662.54,0.00010958,2]
[422317687,1778818241000,-500.0,0.00010958,2]
[422317684,1778818241000,-500.83997723,0.00010958,2]
[422317685,1778818241000,-500.0,0.00010958,2]
[422317689,1778818241000,-500.0,0.00010958,2]
[422317699,1778818241000,-500.0,0.00010958,2]
[422317688,1778818241000,-500.96604979,0.00010958,2]
[422317700,1778818241000,-2169.61,0.00010958,2]
[422317686,1778818241000,-1041.92,0.00010958,2]
[422317819,1778818242000,-500.0,0.00010958,2]
[422317807,1778818242000,-1119.42,0.00010958,2]
[422317813,1778818242000,-585.25,0.00010958,2]
[422317814,1778818242000,-1119.85,0.00010958,2]
[422317815,1778818242000,-500.0,0.00010958,2]
[422317817,1778818242000,-500.0,0.00010958,2]
[422317818,1778818242000,-4105.65,0.00010958,2]
[422317816,1778818242000,-648.98,0.00010958,2]
[422317828,1778818242000,-2960.14,0.00010958,2]
[422317821,1778818242000,-500.0,0.00010958,2]
[422317822,1778818242000,-501.86358413,0.00010958,2]
[422317825,1778818242000,-504.45138701,0.00010958,2]
[422317824,1778818242000,-500.0,0.00010958,2]
[422317823,1778818242000,-500.0,0.00010958,2]
[422317827,1778818242000,-622.61,0.00010958,2]
[422317826,1778818242000,-500.0,0.00010958,2]
[422317811,1778818242000,-500.0,0.00010958,2]